[Event "Early-Titled-Tuesday-Blitz-April-02-2024"]
[Site "Chess.com"]
[Date "2024.04.02"]
[Round "4"]
[White "karinachess1"]
[Black "bubeliang"]
[Result "0-1"]
[WhiteElo "2610"]
[BlackElo "2787"]
[TimeControl "180+1"]
[EndTime "8:38:19 PDT"]
[Termination "bubeliang won on time"]

1. d4 {[%clk 0:03:00.9]} 1... d5 {[%clk 0:02:58]} 2. c4 {[%clk 0:03:00.8]} 2...
e6 {[%clk 0:02:58]} 3. Nc3 {[%clk 0:03:00.5]} 3... Nf6 {[%clk 0:02:58.2]} 4.
cxd5 {[%clk 0:03:00.7]} 4... exd5 {[%clk 0:02:58.3]} 5. Bg5 {[%clk 0:03:00.7]}
5... Be7 {[%clk 0:02:57.2]} 6. e3 {[%clk 0:03:00.7]} 6... c6 {[%clk 0:02:57.1]}
7. Bd3 {[%clk 0:03:00.5]} 7... h6 {[%clk 0:02:56.2]} 8. Bh4 {[%clk 0:03:00.6]}
8... O-O {[%clk 0:02:56.7]} 9. Nf3 {[%clk 0:02:59.2]} 9... a5 {[%clk 0:02:53.3]}
10. O-O {[%clk 0:02:57.3]} 10... Na6 {[%clk 0:02:53.2]} 11. a3 {[%clk
0:02:51.9]} 11... Bg4 {[%clk 0:02:50.7]} 12. h3 {[%clk 0:02:41.6]} 12... Bxf3
{[%clk 0:02:23.6]} 13. Qxf3 {[%clk 0:02:40.1]} 13... Nc7 {[%clk 0:02:24.3]} 14.
Qd1 {[%clk 0:02:19.2]} 14... Ne6 {[%clk 0:02:18]} 15. Qc2 {[%clk 0:02:14]} 15...
Rc8 {[%clk 0:02:11.5]} 16. Na4 {[%clk 0:01:55.7]} 16... Nd7 {[%clk 0:02:05.8]}
17. Bg3 {[%clk 0:01:47.3]} 17... b5 {[%clk 0:02:04.4]} 18. Nc3 {[%clk
0:01:45.6]} 18... Nb6 {[%clk 0:02:05.1]} 19. a4 {[%clk 0:01:36.3]} 19... b4
{[%clk 0:02:02.2]} 20. Ne2 {[%clk 0:01:36.3]} 20... c5 {[%clk 0:02:01.5]} 21.
dxc5 {[%clk 0:01:32.3]} 21... Nxc5 {[%clk 0:01:51.4]} 22. Bf5 {[%clk 0:01:25.1]}
22... Ne6 {[%clk 0:01:38.2]} 23. Qb3 {[%clk 0:01:17.5]} 23... Rc4 {[%clk
0:01:32.6]} 24. Bxe6 {[%clk 0:01:05.4]} 24... fxe6 {[%clk 0:01:31.8]} 25. Nd4
{[%clk 0:01:06.1]} 25... Qd7 {[%clk 0:01:30.5]} 26. Rfd1 {[%clk 0:01:02.6]}
26... Rfc8 {[%clk 0:01:24.1]} 27. Be5 {[%clk 0:00:47.3]} 27... Qe8 {[%clk
0:01:10.6]} 28. Qd3 {[%clk 0:00:21.6]} 28... Nd7 {[%clk 0:01:04.2]} 29. Bg3
{[%clk 0:00:19.4]} 29... Nc5 {[%clk 0:01:02.9]} 30. Qe2 {[%clk 0:00:18.2]} 30...
Bf6 {[%clk 0:00:59.9]} 31. Nb5 {[%clk 0:00:14.9]} 31... Ne4 {[%clk 0:00:59.3]}
32. Qg4 {[%clk 0:00:07.1]} 32... Nc3 {[%clk 0:00:54.3]} 33. bxc3 {[%clk
0:00:07]} 33... Rxg4 {[%clk 0:00:54]} 34. Nd6 {[%clk 0:00:05.9]} 34... Rgc4
{[%clk 0:00:46]} 35. Nxe8 {[%clk 0:00:05.7]} 35... Rxe8 {[%clk 0:00:46.9]} 0-1

[Event "Early-Titled-Tuesday-Blitz-April-02-2024"]
[Site "Chess.com"]
[Date "2024.04.02"]
[Round "4"]
[White "PavelChernomordik"]
[Black "stolencandy13"]
[Result "0-1"]
[WhiteElo "2423"]
[BlackElo "2652"]
[TimeControl "180+1"]
[EndTime "8:38:21 PDT"]
[Termination "stolencandy13 won by resignation"]

1. e4 {[%clk 0:03:00.9]} 1... c6 {[%clk 0:03:00]} 2. Nc3 {[%clk 0:03:00.5]} 2...
d5 {[%clk 0:03:00.9]} 3. Nf3 {[%clk 0:03:00.9]} 3... Bg4 {[%clk 0:02:59.8]} 4.
h3 {[%clk 0:03:00.6]} 4... Bxf3 {[%clk 0:03:00.3]} 5. Qxf3 {[%clk 0:03:00.3]}
5... Nf6 {[%clk 0:03:01.2]} 6. d3 {[%clk 0:02:59.6]} 6... e6 {[%clk 0:02:57.4]}
7. Qg3 {[%clk 0:02:58.9]} 7... g6 {[%clk 0:02:44.5]} 8. Be2 {[%clk 0:02:56.5]}
8... Bg7 {[%clk 0:02:43.8]} 9. Bf4 {[%clk 0:02:48.7]} 9... O-O {[%clk
0:02:25.4]} 10. Bc7 {[%clk 0:02:43]} 10... Qc8 {[%clk 0:02:14.5]} 11. Be5 {[%clk
0:02:35.9]} 11... Nbd7 {[%clk 0:02:11.7]} 12. Bd6 {[%clk 0:02:35.3]} 12... Rd8
{[%clk 0:02:02.2]} 13. e5 {[%clk 0:02:30.1]} 13... Ne8 {[%clk 0:02:00.5]} 14.
Be7 {[%clk 0:02:28.5]} 14... Bxe5 {[%clk 0:01:58.5]} 15. f4 {[%clk 0:02:28.4]}
15... Bd4 {[%clk 0:01:50.9]} 16. Bxd8 {[%clk 0:02:19.5]} 16... Qxd8 {[%clk
0:01:51.1]} 17. O-O-O {[%clk 0:02:15.2]} 17... Qa5 {[%clk 0:01:50.3]} 18. Qe1
{[%clk 0:02:11.9]} 18... b5 {[%clk 0:01:40.6]} 19. a3 {[%clk 0:01:53.6]} 19...
b4 {[%clk 0:01:36.5]} 20. Na2 {[%clk 0:01:42.7]} 20... c5 {[%clk 0:01:26.9]} 21.
Bf3 {[%clk 0:01:30.1]} 21... Rb8 {[%clk 0:01:24.8]} 22. c3 {[%clk 0:01:14.4]}
22... bxc3 {[%clk 0:01:10.6]} 23. Nxc3 {[%clk 0:01:11.6]} 23... Nb6 {[%clk
0:00:53.3]} 24. Nb1 {[%clk 0:00:35.4]} 24... Qb5 {[%clk 0:00:48.9]} 25. Nc3
{[%clk 0:00:32.7]} 25... Qb3 {[%clk 0:00:45.8]} 26. Qd2 {[%clk 0:00:29]} 26...
Na4 {[%clk 0:00:42.2]} 27. Qc2 {[%clk 0:00:25.4]} 27... Be3+ {[%clk 0:00:35.8]}
28. Rd2 {[%clk 0:00:18.9]} 28... Qxc2+ {[%clk 0:00:34.5]} 29. Kxc2 {[%clk
0:00:18.1]} 29... Rxb2+ {[%clk 0:00:33.2]} 0-1

[Event "Early-Titled-Tuesday-Blitz-April-02-2024"]
[Site "Chess.com"]
[Date "2024.04.02"]
[Round "4"]
[White "GM_Levan_Pantsulaia"]
[Black "Vahe_Danielyan"]
[Result "0-1"]
[WhiteElo "2876"]
[BlackElo "2622"]
[TimeControl "180+1"]
[EndTime "8:38:23 PDT"]
[Termination "Vahe_Danielyan won by resignation"]

1. Nf3 {[%clk 0:03:00.9]} 1... d5 {[%clk 0:02:59]} 2. c4 {[%clk 0:03:00.8]} 2...
e6 {[%clk 0:02:55.9]} 3. g3 {[%clk 0:03:00.7]} 3... Nf6 {[%clk 0:02:55.2]} 4.
Bg2 {[%clk 0:03:00.8]} 4... dxc4 {[%clk 0:02:52]} 5. Qa4+ {[%clk 0:02:59.5]}
5... Bd7 {[%clk 0:02:51.7]} 6. Qxc4 {[%clk 0:02:59.4]} 6... c5 {[%clk 0:02:50]}
7. Ne5 {[%clk 0:02:59.6]} 7... Qc8 {[%clk 0:02:49.6]} 8. Qd3 {[%clk 0:02:57.9]}
8... Bc6 {[%clk 0:02:47.3]} 9. Nxc6 {[%clk 0:02:57.3]} 9... Nxc6 {[%clk
0:02:47.1]} 10. Qb5 {[%clk 0:02:55.8]} 10... Be7 {[%clk 0:02:41.2]} 11. Bxc6+
{[%clk 0:02:52.8]} 11... bxc6 {[%clk 0:02:42.1]} 12. Qa4 {[%clk 0:02:52.5]}
12... e5 {[%clk 0:02:40]} 13. d3 {[%clk 0:02:48.6]} 13... h5 {[%clk 0:02:33.2]}
14. Bg5 {[%clk 0:02:46.5]} 14... Rb8 {[%clk 0:02:19.4]} 15. Nd2 {[%clk
0:02:45.3]} 15... Rxb2 {[%clk 0:02:03.8]} 16. Nc4 {[%clk 0:02:44.8]} 16... Rb4
{[%clk 0:02:04.1]} 17. Qxa7 {[%clk 0:02:43.5]} 17... e4 {[%clk 0:02:00.3]} 18.
Bxf6 {[%clk 0:02:41.1]} 18... gxf6 {[%clk 0:02:01.2]} 19. h4 {[%clk 0:02:13.4]}
19... exd3 {[%clk 0:01:37]} 20. exd3 {[%clk 0:02:14.3]} 20... Qe6+ {[%clk
0:01:27.3]} 21. Kd2 {[%clk 0:02:08.3]} 21... O-O {[%clk 0:01:27]} 22. Rhe1
{[%clk 0:01:57.5]} 22... Qd5 {[%clk 0:01:23.6]} 23. Rxe7 {[%clk 0:01:33.6]}
23... Rxc4 {[%clk 0:01:16.4]} 24. Qd7 {[%clk 0:01:31.7]} 24... Rd4 {[%clk
0:01:00.2]} 25. Qxd5 {[%clk 0:01:31.2]} 25... cxd5 {[%clk 0:01:01.1]} 26. Ke3
{[%clk 0:01:27]} 26... Ra8 {[%clk 0:00:59.3]} 27. Rc7 {[%clk 0:01:24.3]} 27...
Re8+ {[%clk 0:00:51.5]} 28. Kf3 {[%clk 0:01:22.7]} 28... Rxd3+ {[%clk
0:00:51.3]} 29. Kg2 {[%clk 0:01:22]} 29... c4 {[%clk 0:00:48.6]} 30. a4 {[%clk
0:01:22.6]} 30... Re2 {[%clk 0:00:47.3]} 31. a5 {[%clk 0:01:07.1]} 31... Rdd2
{[%clk 0:00:47.6]} 32. Rf1 {[%clk 0:01:05.1]} 32... Ra2 {[%clk 0:00:46.1]} 33.
Rc5 {[%clk 0:01:05]} 33... Red2 {[%clk 0:00:44.8]} 34. Kf3 {[%clk 0:01:05]}
34... Kg7 {[%clk 0:00:44.4]} 35. Ke3 {[%clk 0:01:02.1]} 35... d4+ {[%clk
0:00:41.6]} 36. Ke4 {[%clk 0:01:01.1]} 36... c3 {[%clk 0:00:42.5]} 37. f4 {[%clk
0:00:48.1]} 37... c2 {[%clk 0:00:41.8]} 38. a6 {[%clk 0:00:20.5]} 38... d3
{[%clk 0:00:40]} 0-1

[Event "Early-Titled-Tuesday-Blitz-April-02-2024"]
[Site "Chess.com"]
[Date "2024.04.02"]
[Round "4"]
[White "margarita_2703"]
[Black "ExchangeAB"]
[Result "1-0"]
[WhiteElo "2323"]
[BlackElo "2460"]
[TimeControl "180+1"]
[EndTime "8:38:24 PDT"]
[Termination "margarita_2703 won by resignation"]

1. e4 {[%clk 0:02:59.8]} 1... c6 {[%clk 0:02:59.1]} 2. d4 {[%clk 0:02:59.5]}
2... d5 {[%clk 0:03:00]} 3. e5 {[%clk 0:03:00.2]} 3... Bf5 {[%clk 0:02:59.5]} 4.
Ne2 {[%clk 0:03:00.8]} 4... e6 {[%clk 0:02:59.4]} 5. Ng3 {[%clk 0:03:01.3]} 5...
Bg6 {[%clk 0:02:59.5]} 6. h4 {[%clk 0:03:02.2]} 6... h6 {[%clk 0:02:59.9]} 7. h5
{[%clk 0:03:03.1]} 7... Bh7 {[%clk 0:03:00.1]} 8. Bd3 {[%clk 0:03:04]} 8... Bxd3
{[%clk 0:02:59.1]} 9. cxd3 {[%clk 0:03:04.9]} 9... Ne7 {[%clk 0:02:59.4]} 10.
Qg4 {[%clk 0:03:03.9]} 10... Qd7 {[%clk 0:02:48.6]} 11. Nc3 {[%clk 0:02:59.2]}
11... Nf5 {[%clk 0:02:48]} 12. Be3 {[%clk 0:02:58]} 12... Na6 {[%clk 0:02:33.2]}
13. a3 {[%clk 0:02:55.6]} 13... c5 {[%clk 0:02:12.1]} 14. dxc5 {[%clk
0:02:48.4]} 14... Nxe3 {[%clk 0:02:01.4]} 15. fxe3 {[%clk 0:02:47.7]} 15... Nxc5
{[%clk 0:02:01.3]} 16. Rd1 {[%clk 0:02:46.3]} 16... f5 {[%clk 0:01:44.6]} 17.
exf6 {[%clk 0:02:44.5]} 17... gxf6 {[%clk 0:01:44.5]} 18. O-O {[%clk 0:02:43.6]}
18... f5 {[%clk 0:01:41.5]} 19. Qg6+ {[%clk 0:02:37.4]} 19... Qf7 {[%clk
0:01:41]} 20. Qxf7+ {[%clk 0:02:37.9]} 20... Kxf7 {[%clk 0:01:41.2]} 21. e4
{[%clk 0:02:38.8]} 21... Bd6 {[%clk 0:01:33.2]} 22. Nge2 {[%clk 0:02:27.9]}
22... dxe4 {[%clk 0:01:03.6]} 23. dxe4 {[%clk 0:02:28.8]} 23... Be5 {[%clk
0:00:55.7]} 24. exf5 {[%clk 0:02:22.3]} 24... Rad8 {[%clk 0:00:53.1]} 25. fxe6+
{[%clk 0:02:20.4]} 25... Kxe6 {[%clk 0:00:54]} 26. Rxd8 {[%clk 0:02:15]} 26...
Rxd8 {[%clk 0:00:53.3]} 27. Nf4+ {[%clk 0:02:15.9]} 27... Bxf4 {[%clk
0:00:52.8]} 28. Rxf4 {[%clk 0:02:16.8]} 28... Rd2 {[%clk 0:00:49.9]} 29. Rg4
{[%clk 0:02:13.6]} 29... Kf5 {[%clk 0:00:46.3]} 30. Rg6 {[%clk 0:02:10.9]} 30...
Rxb2 {[%clk 0:00:44.4]} 31. Rxh6 {[%clk 0:02:10]} 31... Kg5 {[%clk 0:00:44.7]}
32. Rh7 {[%clk 0:02:09.1]} 32... Rb3 {[%clk 0:00:43.6]} 33. Ne2 {[%clk
0:02:04.4]} 33... Ne4 {[%clk 0:00:40.1]} 34. Kh2 {[%clk 0:02:01.5]} 34... Nf6
{[%clk 0:00:39.9]} 35. Rg7+ {[%clk 0:01:59.2]} 35... Kxh5 {[%clk 0:00:38.6]} 36.
Nf4+ {[%clk 0:01:59.8]} 36... Kh6 {[%clk 0:00:33.4]} 37. Rg6+ {[%clk 0:01:59.9]}
37... Kh7 {[%clk 0:00:33.2]} 38. Rxf6 {[%clk 0:02:00.3]} 38... Rxa3 {[%clk
0:00:33]} 39. Rf7+ {[%clk 0:02:00.5]} 39... Kh6 {[%clk 0:00:33.2]} 40. Rxb7
{[%clk 0:02:01.1]} 40... a5 {[%clk 0:00:33.8]} 41. Ra7 {[%clk 0:01:54.4]} 41...
Kg5 {[%clk 0:00:33.6]} 42. Ne6+ {[%clk 0:01:53.6]} 42... Kf6 {[%clk 0:00:33.7]}
43. Ra6 {[%clk 0:01:52.3]} 43... Ke5 {[%clk 0:00:33.2]} 44. g4 {[%clk
0:01:51.6]} 44... a4 {[%clk 0:00:26.2]} 45. Nc5 {[%clk 0:01:44.5]} 45... Kf4
{[%clk 0:00:21.9]} 46. Rg6 {[%clk 0:01:44]} 46... Ra2+ {[%clk 0:00:20.5]} 47.
Kh3 {[%clk 0:01:43.9]} 47... Ra3+ {[%clk 0:00:20.6]} 48. Kh4 {[%clk 0:01:43.5]}
48... Ra1 {[%clk 0:00:21]} 49. Ne6+ {[%clk 0:01:37.6]} 49... Ke5 {[%clk
0:00:20.8]} 50. Ng5 {[%clk 0:01:37.9]} 50... a3 {[%clk 0:00:20.4]} 51. Ra6
{[%clk 0:01:37.9]} 51... a2 {[%clk 0:00:20.6]} 52. Nh3 {[%clk 0:01:38.5]} 52...
Kd5 {[%clk 0:00:18.9]} 53. g5 {[%clk 0:01:37.8]} 53... Kc5 {[%clk 0:00:19.5]}
54. Ra8 {[%clk 0:01:36.7]} 54... Kb6 {[%clk 0:00:19.7]} 55. Kg4 {[%clk
0:01:33.7]} 55... Kb7 {[%clk 0:00:17.7]} 56. Ra3 {[%clk 0:01:32.7]} 56... Kc7
{[%clk 0:00:18.2]} 57. g6 {[%clk 0:01:32.3]} 57... Kd7 {[%clk 0:00:18.7]} 58. g7
{[%clk 0:01:32]} 58... Rg1+ {[%clk 0:00:15.2]} 59. Nxg1 {[%clk 0:01:31.1]} 59...
a1=Q {[%clk 0:00:15]} 60. Rxa1 {[%clk 0:01:32]} 1-0

[Event "Early-Titled-Tuesday-Blitz-April-02-2024"]
[Site "Chess.com"]
[Date "2024.04.02"]
[Round "4"]
[White "kachsona"]
[Black "Massakru"]
[Result "1-0"]
[WhiteElo "2601"]
[BlackElo "2382"]
[TimeControl "180+1"]
[EndTime "8:38:28 PDT"]
[Termination "kachsona won on time"]

1. e4 {[%clk 0:03:00.9]} 1... e5 {[%clk 0:02:59.9]} 2. Nf3 {[%clk 0:03:00.4]}
2... Nc6 {[%clk 0:03:00.5]} 3. Bc4 {[%clk 0:02:59.6]} 3... Nf6 {[%clk
0:03:00.6]} 4. d3 {[%clk 0:02:58.1]} 4... h6 {[%clk 0:03:00.4]} 5. c3 {[%clk
0:02:54.3]} 5... d6 {[%clk 0:03:00.4]} 6. Nbd2 {[%clk 0:02:54.1]} 6... Be7
{[%clk 0:02:59.7]} 7. Bb3 {[%clk 0:02:50.6]} 7... g5 {[%clk 0:02:59]} 8. Nf1
{[%clk 0:02:42.9]} 8... Bg4 {[%clk 0:02:49.7]} 9. Ne3 {[%clk 0:02:41.7]} 9...
Bh5 {[%clk 0:02:45.3]} 10. Nf5 {[%clk 0:02:33]} 10... Bg6 {[%clk 0:02:45.1]} 11.
Nxe7 {[%clk 0:02:22.9]} 11... Qxe7 {[%clk 0:02:42.3]} 12. h4 {[%clk 0:02:23.1]}
12... g4 {[%clk 0:02:32.5]} 13. Nh2 {[%clk 0:02:21.3]} 13... h5 {[%clk
0:02:32.5]} 14. Bg5 {[%clk 0:02:19]} 14... Nd8 {[%clk 0:02:31.9]} 15. O-O {[%clk
0:02:03.3]} 15... Ne6 {[%clk 0:02:31.9]} 16. Bxe6 {[%clk 0:02:03.8]} 16... Qxe6
{[%clk 0:02:31.6]} 17. f4 {[%clk 0:02:00.9]} 17... exf4 {[%clk 0:02:31.2]} 18.
Rxf4 {[%clk 0:01:56.8]} 18... Nh7 {[%clk 0:02:31.3]} 19. Qa4+ {[%clk 0:01:53.4]}
19... c6 {[%clk 0:02:25.9]} 20. Qd4 {[%clk 0:01:50.5]} 20... Kd7 {[%clk
0:02:19.9]} 21. Bf6 {[%clk 0:01:35.6]} 21... Rhg8 {[%clk 0:02:15.9]} 22. Nf1
{[%clk 0:01:33.6]} 22... Kc7 {[%clk 0:02:03.5]} 23. Ne3 {[%clk 0:01:26.5]} 23...
b6 {[%clk 0:01:54.1]} 24. Nc4 {[%clk 0:01:19.6]} 24... c5 {[%clk 0:01:46.1]} 25.
Qf2 {[%clk 0:01:18.5]} 25... Rae8 {[%clk 0:01:27.7]} 26. Ne3 {[%clk 0:01:16.5]}
26... Kb7 {[%clk 0:01:20]} 27. Nd5 {[%clk 0:01:14.6]} 27... c4 {[%clk
0:01:09.3]} 28. dxc4 {[%clk 0:01:04.2]} 28... g3 {[%clk 0:00:49.1]} 29. Qd4
{[%clk 0:00:48.1]} 29... Bxe4 {[%clk 0:00:14.4]} 30. Re1 {[%clk 0:00:47.2]}
30... Bxd5 {[%clk 0:00:13.6]} 31. Rxe6 {[%clk 0:00:47.4]} 31... Bxe6 {[%clk
0:00:13.7]} 32. Qe4+ {[%clk 0:00:47.8]} 32... d5 {[%clk 0:00:06.2]} 33. Qxh7
{[%clk 0:00:47.5]} 33... Bd7 {[%clk 0:00:03.1]} 34. Qxf7 {[%clk 0:00:43.3]}
34... Re1+ {[%clk 0:00:02.8]} 35. Rf1 {[%clk 0:00:43.3]} 35... Rxf1+ {[%clk
0:00:03.1]} 36. Kxf1 {[%clk 0:00:43.6]} 1-0

[Event "Early-Titled-Tuesday-Blitz-April-02-2024"]
[Site "Chess.com"]
[Date "2024.04.02"]
[Round "4"]
[White "Fengwi"]
[Black "noblerone"]
[Result "0-1"]
[WhiteElo "2340"]
[BlackElo "2550"]
[TimeControl "180+1"]
[EndTime "8:38:28 PDT"]
[Termination "noblerone won by resignation"]

1. Nf3 {[%clk 0:02:18.3]} 1... d5 {[%clk 0:02:59.2]} 2. b3 {[%clk 0:02:17.7]}
2... Nf6 {[%clk 0:02:58.7]} 3. Bb2 {[%clk 0:02:17.1]} 3... Bf5 {[%clk
0:02:53.5]} 4. g3 {[%clk 0:02:17.1]} 4... e6 {[%clk 0:02:53.6]} 5. Bg2 {[%clk
0:02:17.7]} 5... Bc5 {[%clk 0:02:52.1]} 6. O-O {[%clk 0:02:17.1]} 6... O-O
{[%clk 0:02:52.6]} 7. d4 {[%clk 0:02:13]} 7... Bd6 {[%clk 0:02:50.5]} 8. c4
{[%clk 0:02:10.8]} 8... c6 {[%clk 0:02:49.6]} 9. Nc3 {[%clk 0:02:10.3]} 9...
Nbd7 {[%clk 0:02:45.5]} 10. Nd2 {[%clk 0:02:09.1]} 10... a5 {[%clk 0:02:41.4]}
11. e4 {[%clk 0:02:08.2]} 11... dxe4 {[%clk 0:02:41.7]} 12. Ndxe4 {[%clk
0:02:07.7]} 12... Nxe4 {[%clk 0:02:37.2]} 13. Nxe4 {[%clk 0:02:08.6]} 13... Bxe4
{[%clk 0:02:32.9]} 14. Bxe4 {[%clk 0:02:07.7]} 14... Nf6 {[%clk 0:02:32.6]} 15.
Bc2 {[%clk 0:02:05.4]} 15... a4 {[%clk 0:02:22.6]} 16. bxa4 {[%clk 0:02:03.8]}
16... Be7 {[%clk 0:02:13.9]} 17. Rb1 {[%clk 0:02:00.7]} 17... Qa5 {[%clk
0:02:05.2]} 18. Qd3 {[%clk 0:01:58.1]} 18... Qh5 {[%clk 0:01:54.2]} 19. Bd1
{[%clk 0:01:37.8]} 19... Qh3 {[%clk 0:01:42.3]} 20. Bc3 {[%clk 0:01:26.1]} 20...
Ra7 {[%clk 0:01:00.6]} 21. Qf3 {[%clk 0:01:14.3]} 21... Rd8 {[%clk 0:00:48.1]}
22. g4 {[%clk 0:00:44.8]} 22... Qh4 {[%clk 0:00:38.6]} 23. Qg3 {[%clk 0:00:44]}
23... Ne4 {[%clk 0:00:32.6]} 24. Qxh4 {[%clk 0:00:40.2]} 24... Bxh4 {[%clk
0:00:33.5]} 25. Ba1 {[%clk 0:00:36.1]} 25... Nd2 {[%clk 0:00:32]} 26. Bb3 {[%clk
0:00:26.3]} 26... Nxf1 {[%clk 0:00:30.1]} 27. Kxf1 {[%clk 0:00:24.9]} 27... Bf6
{[%clk 0:00:30.6]} 28. Rd1 {[%clk 0:00:22.9]} 28... b6 {[%clk 0:00:24.6]} 29. f4
{[%clk 0:00:21.5]} 29... Rad7 {[%clk 0:00:24.4]} 30. d5 {[%clk 0:00:17.2]} 30...
Bxa1 {[%clk 0:00:23.7]} 31. Rxa1 {[%clk 0:00:06.9]} 31... exd5 {[%clk
0:00:23.8]} 32. cxd5 {[%clk 0:00:06.9]} 32... cxd5 {[%clk 0:00:24.7]} 0-1

[Event "Early-Titled-Tuesday-Blitz-April-02-2024"]
[Site "Chess.com"]
[Date "2024.04.02"]
[Round "4"]
[White "JoshuaGK27"]
[Black "Gabrielian_Artur"]
[Result "0-1"]
[WhiteElo "2533"]
[BlackElo "2803"]
[TimeControl "180+1"]
[EndTime "8:38:29 PDT"]
[Termination "Gabrielian_Artur won by resignation"]

1. e4 {[%clk 0:02:59.5]} 1... c5 {[%clk 0:02:59.6]} 2. Nf3 {[%clk 0:02:59.8]}
2... d6 {[%clk 0:02:59.8]} 3. d4 {[%clk 0:02:59.7]} 3... cxd4 {[%clk 0:03:00]}
4. Nxd4 {[%clk 0:03:00.6]} 4... Nf6 {[%clk 0:03:00.2]} 5. Bd3 {[%clk 0:03:01.2]}
5... Nc6 {[%clk 0:02:59.2]} 6. Be3 {[%clk 0:03:01]} 6... g6 {[%clk 0:02:56.4]}
7. h3 {[%clk 0:02:54.1]} 7... Bg7 {[%clk 0:02:56.2]} 8. c4 {[%clk 0:02:54]} 8...
O-O {[%clk 0:02:52.3]} 9. Nc3 {[%clk 0:02:54.3]} 9... Nxd4 {[%clk 0:02:49.7]}
10. Bxd4 {[%clk 0:02:53.7]} 10... Bd7 {[%clk 0:02:50.1]} 11. O-O {[%clk
0:02:52.4]} 11... Bc6 {[%clk 0:02:50.3]} 12. Re1 {[%clk 0:02:51.4]} 12... Nd7
{[%clk 0:02:48.6]} 13. Bxg7 {[%clk 0:02:50.5]} 13... Kxg7 {[%clk 0:02:49.5]} 14.
Rc1 {[%clk 0:02:47.3]} 14... a5 {[%clk 0:02:48.8]} 15. b3 {[%clk 0:02:45.6]}
15... Nc5 {[%clk 0:02:47.8]} 16. Bf1 {[%clk 0:02:38.1]} 16... Ne6 {[%clk
0:02:41.8]} 17. a3 {[%clk 0:02:26.6]} 17... Qb6 {[%clk 0:02:37.4]} 18. Rb1
{[%clk 0:02:26]} 18... Nd4 {[%clk 0:02:30.8]} 19. b4 {[%clk 0:02:10.1]} 19...
axb4 {[%clk 0:02:30.7]} 20. axb4 {[%clk 0:02:09]} 20... Ra3 {[%clk 0:02:25.6]}
21. b5 {[%clk 0:01:48.4]} 21... Rxc3 {[%clk 0:02:23.4]} 22. bxc6 {[%clk
0:01:48.6]} 22... Rb3 {[%clk 0:02:23.8]} 23. cxb7 {[%clk 0:01:41.8]} 23... e5
{[%clk 0:02:15.8]} 24. Rxb3 {[%clk 0:01:28.4]} 24... Nxb3 {[%clk 0:02:10.8]} 25.
Qd5 {[%clk 0:01:27.5]} 25... Nc5 {[%clk 0:02:01]} 26. Rd1 {[%clk 0:01:23.8]}
26... Nxb7 {[%clk 0:02:00.9]} 27. Qb5 {[%clk 0:00:46.3]} 27... Qc7 {[%clk
0:01:56.1]} 28. Qa6 {[%clk 0:00:25.2]} 28... Rd8 {[%clk 0:01:53.6]} 29. Rb1
{[%clk 0:00:22.8]} 29... Nc5 {[%clk 0:01:52.1]} 30. Qb6 {[%clk 0:00:18.5]} 30...
Qxb6 {[%clk 0:01:52.2]} 31. Rxb6 {[%clk 0:00:19.4]} 31... Nxe4 {[%clk
0:01:52.5]} 32. g3 {[%clk 0:00:18.7]} 32... Nc5 {[%clk 0:01:49.3]} 33. Bg2
{[%clk 0:00:18.2]} 33... e4 {[%clk 0:01:49.7]} 34. Rb1 {[%clk 0:00:17]} 34... f5
{[%clk 0:01:49.2]} 35. Rd1 {[%clk 0:00:17]} 35... Kf6 {[%clk 0:01:48.5]} 36. Kf1
{[%clk 0:00:17]} 36... Ke7 {[%clk 0:01:44.8]} 37. Ke2 {[%clk 0:00:14.3]} 37...
Ra8 {[%clk 0:01:39.9]} 38. Rd2 {[%clk 0:00:14.3]} 38... Ra3 {[%clk 0:01:38.9]}
39. Rc2 {[%clk 0:00:14.1]} 39... h5 {[%clk 0:01:36.1]} 40. h4 {[%clk 0:00:14.3]}
40... Ne6 {[%clk 0:01:29.8]} 41. Rd2 {[%clk 0:00:12.3]} 41... Rc3 {[%clk
0:01:29.4]} 42. f3 {[%clk 0:00:11]} 42... e3 {[%clk 0:01:21.9]} 43. Ra2 {[%clk
0:00:05]} 43... Nd4+ {[%clk 0:01:21.3]} 44. Kd1 {[%clk 0:00:05.6]} 44... e2+
{[%clk 0:01:20.8]} 45. Kd2 {[%clk 0:00:05.8]} 45... Rxc4 {[%clk 0:01:17.6]} 46.
f4 {[%clk 0:00:01.5]} 46... Rc1 {[%clk 0:01:05.2]} 47. Ke3 {[%clk 0:00:01.1]}
47... e1=Q+ {[%clk 0:01:03.9]} 0-1

[Event "Early-Titled-Tuesday-Blitz-April-02-2024"]
[Site "Chess.com"]
[Date "2024.04.02"]
[Round "4"]
[White "vladgoncharov"]
[Black "CSB7"]
[Result "0-1"]
[WhiteElo "2583"]
[BlackElo "2774"]
[TimeControl "180+1"]
[EndTime "8:38:34 PDT"]
[Termination "CSB7 won on time"]

1. d4 {[%clk 0:03:00.9]} 1... Nf6 {[%clk 0:02:58.4]} 2. c4 {[%clk 0:03:00.3]}
2... a6 {[%clk 0:02:58.7]} 3. Nc3 {[%clk 0:02:54.6]} 3... b5 {[%clk 0:02:58.6]}
4. cxb5 {[%clk 0:02:54.5]} 4... axb5 {[%clk 0:02:59.5]} 5. Nxb5 {[%clk
0:02:54.7]} 5... e5 {[%clk 0:03:00.1]} 6. Nc3 {[%clk 0:02:49.1]} 6... Bb4 {[%clk
0:02:41.8]} 7. dxe5 {[%clk 0:02:22.9]} 7... Ne4 {[%clk 0:02:41.3]} 8. Qd4 {[%clk
0:02:22.3]} 8... Ra4 {[%clk 0:02:40.2]} 9. Qd3 {[%clk 0:02:13.8]} 9... d5 {[%clk
0:01:52.2]} 10. exd6 {[%clk 0:02:06.1]} 10... O-O {[%clk 0:01:45]} 11. Bd2
{[%clk 0:01:41.4]} 11... Bf5 {[%clk 0:01:40.4]} 12. Qd5 {[%clk 0:00:33.7]} 12...
Bg6 {[%clk 0:00:47]} 13. Rd1 {[%clk 0:00:32.5]} 13... Bxc3 {[%clk 0:00:38.2]}
14. Bxc3 {[%clk 0:00:30.1]} 14... cxd6 {[%clk 0:00:33.4]} 15. h4 {[%clk
0:00:22.9]} 15... Nxc3 {[%clk 0:00:18.3]} 16. bxc3 {[%clk 0:00:22.4]} 16... Qc7
{[%clk 0:00:19]} 17. Qb3 {[%clk 0:00:20.4]} 17... Ra5 {[%clk 0:00:16.2]} 18. Rh3
{[%clk 0:00:19.5]} 18... Nd7 {[%clk 0:00:15.9]} 19. g4 {[%clk 0:00:16.7]} 19...
Rb8 {[%clk 0:00:15.8]} 20. h5 {[%clk 0:00:06.2]} 20... Rxb3 {[%clk 0:00:14.7]}
21. axb3 {[%clk 0:00:07.1]} 21... Bc2 {[%clk 0:00:14.7]} 22. Rc1 {[%clk
0:00:06.2]} 22... Bxb3 {[%clk 0:00:15.1]} 23. Bg2 {[%clk 0:00:06.5]} 23... Ne5
{[%clk 0:00:14.7]} 24. Re3 {[%clk 0:00:05.9]} 24... h6 {[%clk 0:00:13.4]} 25. f3
{[%clk 0:00:05.6]} 25... Qc5 {[%clk 0:00:12.1]} 26. Kf2 {[%clk 0:00:05.8]} 26...
Nc4 {[%clk 0:00:11.8]} 0-1